Cogmind - Beta 15 @@@ ROGUE MODE // 2025.08.25 @ 12:21:47 Player: WitherScout Result: Destroyed by G-50 Soldier with Heavy Laser Performance ------------- Evolutions (4) 2000 Regions Visited (4) 800 Robots Destroyed (3) 15 Value Destroyed (151) 151 Prototype IDs (0) 0 Alien Tech Used (0) 0 Bonus (800) 800 TOTAL SCORE: 3766 Bonus ------- Registered with UFD 300 Met Optimus in HQ 500 Cogmind --------- Core Integrity 0/850 Matter 280/300 Energy 34/100 System Corruption 0% Temperature Warm (188) Movement Core (200) Ox3 Location -6/Factory Parts ------- > --- POWER (2) -------- (None) > --- PROPULSION (4) --- (None) > --- UTILITY (5) ------ (None) > --- WEAPON (4) ------- Heavy Plasma Cannon > --- INVENTORY (5) ---- Light Nuclear Core Aluminum Leg Aluminum Leg Carbon-fiber Leg Small Storage Unit Peak State ------------ > --- POWER ------------ Ion Engine Light Ion Engine > --- PROPULSION ------- Aluminum Leg Aluminum Leg Aluminum Leg Aluminum Leg > --- UTILITY ---------- Small Storage Unit ECM Suite Propulsion Shielding > --- WEAPON ----------- Assault Rifle Light Assault Rifle Light Assault Rifle > --- INVENTORY -------- Light Nuclear Core Aluminum Leg Aluminum Leg [Rating: 12] Favorites ----------- Power Ion Engine Engine Ion Engine Propulsion Aluminum Leg Leg Aluminum Leg Utility Small Storage Unit Device ECM Suite Storage Small Storage Unit Protection Propulsion Shielding Weapon Light Assault Rifle Energy Gun High-powered Shock Rifle Energy Cannon Heavy Plasma Cannon Ballistic Gun Light Assault Rifle Build | -11 -10 -10 -9 -6 ------- Run | Yrd Mat Sub Scr Fac Slots Evolved 8 | . . . . 8 Power 1 | . . . . 1 Propulsion 2 | . . . . 2 Utility 3 | . . . . 3 Weapon 2 | . . . . 2 Parts Attached 15 | 6 2 . . 7 Power 3 | 1 . . . 2 Engine 3 | 1 . . . 2 Core . | . . . . . Reactor . | . . . . . Propulsion 4 | 2 . . . 2 Treads . | . . . . . Leg 4 | 2 . . . 2 Wheel . | . . . . . Hover . | . . . . . Flight . | . . . . . Utility 3 | 1 1 . . 1 Device 1 | . . . . 1 Storage 1 | 1 . . . . Processor . | . . . . . Hackware . | . . . . . Protection 1 | . 1 . . . Artifact . | . . . . . Weapon 5 | 2 1 . . 2 Energy Gun 1 | . . . . 1 Energy Cannon 1 | . . . . 1 Ballistic Gun 3 | 2 1 . . . Ballistic Cannon . | . . . . . Launcher . | . . . . . Special Weapon . | . . . . . Impact Weapon . | . . . . . Slashing Weapon . | . . . . . Piercing Weapon . | . . . . . Special Melee Weapon . | . . . . . Unidentified Prototypes . | . . . . . Parts Lost 13 | . . . . 13 Power 3 | . . . . 3 Propulsion 4 | . . . . 4 Utility 2 | . . . . 2 Weapon 4 | . . . . 4 Highest Loss Streak 11 | . . . . 11 To Critical Strikes . | . . . . . Average Backups 6 | . 6 8 8 3 Power 1 | . 1 2 2 1 Propulsion 3 | . 3 4 4 2 Utility . | . . 1 1 . Weapon . | . . 1 1 . Tool/Special . | . . . . . Unused Backups 5 | . 1 . . 4 Power 2 | . 1 . . 1 Propulsion 3 | . . . . 3 Utility . | . . . . . Weapon . | . . . . . Tool/Special . | . . . . . Average Slot Usage (%) 90 | . 98 100 100 48 Engine 12 | . 14 14 14 6 Leg 26 | . 28 28 28 16 Storage 12 | . 14 14 14 4 Protection 11 | . 12 14 14 3 Ballistic Gun 25 | . 28 28 28 11 Peak Build Rating 12 | 6 8 8 8 12 Average Rating 7 | 4 7 8 8 7 On Entrance 6 | . 6 8 8 8 Naked Turns 20 | . . . . 20 Heaviest Build 20 | 12 14 14 14 20 Greatest Support 40 | 20 20 20 20 40 Greatest Overweight (x) 4 | . . . . 4 Average Overweight (x) . | . . . . . Largest Inventory Capacity 8 | 8 8 8 8 8 Average Capacity 7 | 6 8 8 8 7 Most Carried 8 | 1 8 8 8 7 Average Carried 6 | . 7 8 8 3 Final Capacity 8 | 8 8 8 8 5 Final Carried 8 | 1 8 8 8 5 Class Distribution -------------------- 91% | Mutant 8% | Tank Dominant Class ---------------- Mutant | -10/Materials Mutant | -10/Subcaves Mutant | -9/Scraptown Tank | -6/Factory Resources | -11 -10 -10 -9 -6 ----------- Run | Yrd Mat Sub Scr Fac Matter Collected 356 | 189 79 . . 88 Remotely . | . . . . . Salvage Created 138 | . 79 . . 59 Parts 5 | . 4 . . 1 Haulers Intercepted . | . . . . . Recyclers Shooed . | . . . . . Parts Field Recycled . | . . . . . Retrieved Matter . | . . . . . Parts Self-Destructed 8 | . . 8 . . Prevented . | . . . . . Kills | -11 -10 -10 -9 -6 ------- Run | Yrd Mat Sub Scr Fac Combat Hostiles Destroyed 3 | . 2 . . 1 Guns 3 | . 2 . . 1 Classes Destroyed 2 | . 1 . . 1 Grunt 2 | . 2 . . . Duelist 1 | . . . . 1 Best Kill Streak 2 | . 2 . . 1 Combat Bots Only 2 | . 2 . . 1 Max Kills in Single Turn 1 | . 1 . . 1 Gunslinging . | . . . . . Exploded . | . . . . . Melee . | . . . . . Uniques/NPCs Destroyed . | . . . . . Combat | -11 -10 -10 -9 -6 -------- Run | Yrd Mat Sub Scr Fac Hostile Shots Fired 151 | . 6 . . 145 Missed 44 | . 2 . . 42 Hits 107 | . 4 . . 103 Melee 1 | . . . . 1 Projectile 106 | . 4 . . 102 Critical Strikes 10 | . . . . 10 Actively Blocked 1 | . . . . 1 Damage Taken 2017 | . 52 . . 1965 Core 875 | . 12 . . 863 Absorbed by Shields . | . . . . . Redirected to Shielding 55 | . 4 . . 51 Core Remaining (%) 97 | 100 . . 95 . Volleys Fired 30 | . 5 . . 25 Largest 3 | . 2 . . 3 Hottest 90 | . 40 . . 90 Shots Fired 56 | . 10 . . 46 Gun 51 | . 10 . . 41 Cannon 5 | . . . . 5 Launcher . | . . . . . Special . | . . . . . Kinetic 51 | . 10 . . 41 Thermal 5 | . . . . 5 Explosive . | . . . . . Electromagnetic . | . . . . . Robot Hit Streak 12 | . 9 . . 12 Robot Miss Streak 4 | . 1 . . 4 Penetration Max . | . . . . . Secondary Targets . | . . . . . Shots Hit Robots 39 | . 9 . . 30 Core Hits 20 | . 5 . . 15 Critical Kills . | . . . . . Critical Parts Destroyed . | . . . . . Critical Strikes . | . . . . . Melee Attacks . | . . . . . Impact . | . . . . . Slashing . | . . . . . Piercing . | . . . . . Sneak Attacks . | . . . . . Combat Hostiles . | . . . . . Follow-up Attacks . | . . . . . Damage Inflicted 475 | . 93 . . 382 Guns 411 | . 93 . . 318 Cannons 64 | . . . . 64 Explosions . | . . . . . Melee . | . . . . . Ramming . | . . . . . Kinetic 411 | . 93 . . 318 Thermal 64 | . . . . 64 Explosive . | . . . . . Electromagnetic . | . . . . . Impact . | . . . . . Slashing . | . . . . . Piercing . | . . . . . Highest Corruption . | . . . . . Average Corruption . | . . . . . Corruption Purged . | . . . . . Corruption Blocked . | . . . . . Overload Shots . | . . . . . Overflow Damage . | . . . . . Projectiles . | . . . . . Explosions . | . . . . . Melee . | . . . . . Knockbacks . | . . . . . Impact . | . . . . . Kinetic . | . . . . . Secondary . | . . . . . Self-Inflicted Damage . | . . . . . Shots . | . . . . . Rammed . | . . . . . Targets Rammed . | . . . . . Kicked . | . . . . . Crushed . | . . . . . Highest Temperature 179 | . 9 . . 179 Average Temperature 37 | . 6 . . 40 Received Heat Transfer 1005 | . 30 . . 975 Siege Activations . | . . . . . Martial Activations . | . . . . . Shielding Activations . | . . . . . Robots Disrupted . | . . . . . Combat Hostiles . | . . . . . Robots Corrupted . | . . . . . Combat Hostiles . | . . . . . Parts Fried . | . . . . . Impact Corruptions . | . . . . . Robots Melted . | . . . . . Combat Hostiles . | . . . . . Parts Melted . | . . . . . Heat Transferred 100 | . . . . 100 Parts Sabotaged . | . . . . . Parts Stolen . | . . . . . Parts Stripped . | . . . . . Power Chain Reactions . | . . . . . Alert | -11 -10 -10 -9 -6 ------- Run | Yrd Mat Sub Scr Fac Maximum Alert Level . | . . . . . Low Security (%) 100 | 100 100 . . 100 Level 1 . | . . . . . Level 2 . | . . . . . Level 3 . | . . . . . Level 4 . | . . . . . Level 5 . | . . . . . High Security . | . . . . . Max Security . | . . . . . Peak Influence 70 | . 70 . . 30 Initial . | . . . . . Average 12 | . 20 . . 3 Influence Increases 149 | . 89 . . 60 Destroy 0b10 Robot/C 60 | . 40 . . 20 Destroy Leader 20 | . 10 . . 10 Successful Hack 9 | . 9 . . . Disable Machine 30 | . . . . 30 Lose Combat Pursuer 30 | . 30 . . . Influence Decreases 129 | . 59 30 . 40 Entered New Map 15 | . . 15 . . Time Decay 84 | . 59 15 . 10 Lost Part 30 | . . . . 30 Squads Dispatched 1 | . . . . 1 Investigation 1 | . . . . 1 Extermination . | . . . . . Reinforcement . | . . . . . Assault . | . . . . . Garrison . | . . . . . Intercept . | . . . . . Searches Triggered . | . . . . . Construction Impeded . | . . . . . Haulers Reinforced . | . . . . . Active Scanning Responses . | . . . . . Cargo Convoy Interrupts . | . . . . . Stealth | -11 -10 -10 -9 -6 --------- Run | Yrd Mat Sub Scr Fac Distress Signals 2 | . 2 . . . Communications Jammed . | . . . . . Distress Signals . | . . . . . Times Spotted 22 | . 9 . . 13 Peak Tracking Total 8 | . 4 . . 8 Tactical Retreats 2 | . 1 . . 1 Traps | -11 -10 -10 -9 -6 ------- Run | Yrd Mat Sub Scr Fac Traps Triggered . | . . . . . Indirectly . | . . . . . Trap Hack Attempts . | . . . . . Triggered . | . . . . . Disarmed . | . . . . . Reprogrammed . | . . . . . Reused . | . . . . . Traps Extracted . | . . . . . Installed . | . . . . . Triggered . | . . . . . Machines | -11 -10 -10 -9 -6 ---------- Run | Yrd Mat Sub Scr Fac Machines Disabled 2 | . . . . 2 Max in Single Turn 1 | . . . . 1 Machines Repaired . | . . . . . Machines Dismantled . | . . . . . Machines Sabotaged . | . . . . . Overloaded Fab Kills . | . . . . . Hacking | -11 -10 -10 -9 -6 --------- Run | Yrd Mat Sub Scr Fac Machines Accessed 5 | . 1 . 3 1 Terminals 1 | . 1 . . . Fabricators . | . . . . . Repair Stations . | . . . . . Recycling Units 1 | . . . . 1 Scanalyzers . | . . . . . Garrison Access . | . . . . . Total Hacks 32 | . 3 . 25 4 Successful 30 | . 2 . 25 3 Failed 2 | . 1 . . 1 Catastrophic 1 | . 1 . . . Database Lockouts . | . . . . . Manual 2 | . . . . 2 Terminals 3 | . 3 . . . Fabricators . | . . . . . Repair Stations . | . . . . . Recycling Units 4 | . . . . 4 Scanalyzers . | . . . . . Garrison Access . | . . . . . Terminal Hacks 27 | . 2 . 25 . Record 25 | . . . 25 . Locate Traps 1 | . 1 . . . Zone Layout 1 | . 1 . . . Fabricator Hacks . | . . . . . Repair Station Hacks . | . . . . . Recycling Unit Hacks 2 | . . . . 2 Report Inventory 1 | . . . . 1 Retrieve Components 1 | . . . . 1 Scanalyzer . | . . . . . Garrison Access Hacks . | . . . . . Unauthorized Hacks 1 | . . . . 1 Terminals . | . . . . . Fabricators . | . . . . . Repair Stations . | . . . . . Recycling Units 1 | . . . . 1 Fedlink 1 | . . . . 1 Scanalyzers . | . . . . . Garrison Access . | . . . . . Data Cores Recovered . | . . . . . Used . | . . . . . Hacking Detections 1 | . 1 . . . Full Trace Events . | . . . . . Feedback Events . | . . . . . Feedback Blocked . | . . . . . Robot Schematics Acquired . | . . . . . Robots Built . | . . . . . Authchips . | . . . . . Time . | . . . . . Total Robot Build Rating . | . . . . . Part Schematics Acquired . | . . . . . Parts Built . | . . . . . Authchips . | . . . . . Time . | . . . . . Total Part Build Rating . | . . . . . Parts Repaired . | . . . . . Time . | . . . . . Parts Recycled . | . . . . . Recycled Matter . | . . . . . Retrieved Matter . | . . . . . Retrieved Components 3 | . . . . 3 Parts Scanalyzed . | . . . . . Part Schematics Acquired . | . . . . . Parts Damaged . | . . . . . Bothacking | -11 -10 -10 -9 -6 ------------ Run | Yrd Mat Sub Scr Fac Used RIF Installer . | . . . . . Robots Hacked . | . . . . . Non-combat . | . . . . . Combat . | . . . . . Robot Hacks Applied . | . . . . . Relay Couplers Released . | . . . . . Fabnet Peak Effective % . | . . . . . Robots Rewired . | . . . . . Allies Hacked . | . . . . . Hacks Repelled . | . . . . . Allies | -11 -10 -10 -9 -6 -------- Run | Yrd Mat Sub Scr Fac Total Allies . | . . . . . Largest Group . | . . . . . Highest-Rated Group . | . . . . . Highest-Rated Ally . | . . . . . Total Orders . | . . . . . Ally Attacks . | . . . . . Total Damage . | . . . . . Kills . | . . . . . Allies Corrupted . | . . . . . Allies Melted . | . . . . . Intel | -11 -10 -10 -9 -6 ------- Run | Yrd Mat Sub Scr Fac Active Infowar (turns) 70 | . . . . 70 ECM 70 | . . . . 70 Robot Analysis Total . | . . . . . Derelict Logs Recovered . | . . . . . Drone Launches . | . . . . . Drone Recoveries . | . . . . . Exploration | -11 -10 -10 -9 -6 ------------- Run | Yrd Mat Sub Scr Fac Turns Passed 895 | 46 217 82 412 138 Spaces Moved 627 | 33 154 34 344 62 Core 52 | 5 . . . 47 Treads . | . . . . . Legs 575 | 28 154 34 344 15 Wheels . | . . . . . Hover . | . . . . . Flight . | . . . . . Fastest Speed 50 | 50 120 120 120 50 Average Speed 115 | 109 120 120 120 77 Slowest Speed 250 | 120 120 120 120 250 Overloaded Moves . | . . . . . Propulsion Burnouts . | . . . . . Robots Hopped . | . . . . . Potential Cave-ins . | . . . . . Cave-ins Triggered . | . . . . . Exploration Rate (%) 15 | 4 23 4 43 2 Regions Visited 4 Branch Regions 2 Pre-discovered Areas 1 | . . 1 . . Known Exits Taken . | . . . . . Unknown Exits Taken 4 | 1 1 1 1 . Scrap Searched . | . . . . . Spaces Dug . | . . . . . Terrain Destroyed . | . . . . . Melee . | . . . . . Projectile . | . . . . . AOE . | . . . . . Terrain Rammed . | . . . . . Walls Destroyed . | . . . . . Machines Disabled . | . . . . . Actions | -11 -10 -10 -9 -6 --------- Run | Yrd Mat Sub Scr Fac Total 755 | 40 177 75 343 120 Wait 75 | 1 9 42 . 23 Move 623 | 32 153 33 343 62 Hop . | . . . . . Pick Up 9 | 1 7 . . 1 Fast Attach 10 | 6 1 . . 3 Attach 5 | . . . . 5 Detach 1 | . . . . 1 Swap 1 | . 1 . . . Drop 1 | . 1 . . . Fire 30 | . 5 . . 25 Melee . | . . . . . Ram . | . . . . . Kick . | . . . . . Crush . | . . . . . Escape Stasis . | . . . . . Rewire . | . . . . . Trap . | . . . . . Miscellaneous . | . . . . . Route ------- -11/Scrapyard -10/Materials -10/Subcaves -9/Scraptown -6/Factory History --------- Turn | Location | Event 4 | -11/Scrapyard | Discovered new exit (range 15) 47 | -11/Scrapyard | Entered Materials 229 | -10/Materials | Discovered new exit (range 9) 264 | -10/Materials | Entered Subcaves 265 | -10/Subcaves | Approached by a straggling Scientist 274 | -10/Subcaves | Learned location of Zion (-7) 274 | -10/Subcaves | Met a Zionite searching for "candidates" 311 | -10/Subcaves | Build established: Mutant 338 | -10/Subcaves | Scientist uncovered a shortcut to Scraptown 346 | -10/Subcaves | Entered Scraptown 392 | -9/Scraptown | Heard Great Nut preacher, LISTEN AND RECITE! 476 | -9/Scraptown | Visited UFD Registry 476 | -9/Scraptown | Registered with UFD as "Thunderunit" 675 | -9/Scraptown | Met Optimus 675 | -9/Scraptown | Accepted into 0bPrime 750 | -9/Scraptown | Discovered new exit (range 5) 758 | -9/Scraptown | Entered Factory 758 | -6/Factory | Evolved 8 slots: Power x1, Propulsion x2, Utility x3, Weapon x2 865 | -6/Factory | Core integrity fell below 50% 876 | -6/Factory | Core integrity fell below 20% 878 | -6/Factory | Loaded intel: 8 recycling unit locations 882 | -6/Factory | Lost 11 parts (2p4n2u3w) 896 | -6/Factory | Destroyed by G-50 Soldier with Heavy Laser Last Messages --------------- \/ \/ \/ \/ \/ v3.71\/ UFD!MEMBER UFD!NETWORK<707> UFD!RESOURCES<33> 0bP!READINESS UFD!SANITIZING UFD!... Loading Factory recycling unit intel (x8)... ALERT: Suspicious activity at Recycling Unit F001. Dispatching Investigation squad. Acquired Hpw. Shock Rifle. Acquired Lgt. Angular Momentum Engine. Hpw. Shock Rifle destroyed. Acquired Hvy. Plasma Cannon. Matter Pump disabled. Lgt. Angular Momentum Engine destroyed. Recycling Unit disabled. Critical hit (Burn: +37). K-01 Serf collects debris. Critical hit (Burn: +37). Map ----- +----------------------------------------------------+ | ?????????????????????????????????????????????????? | | ?????????????????????????????????????????????????? | | ?????????????????????????????????????????????????? | | ?????????????????????????????????????????????????? | | ?????????????????????????????????????????????????? | | ?????????????????????????????????????????????????? | | ?????????????????????????????????????????????????? | | ?????????????????????????????????????????????????? | | ?????????????????????????????????????????????????? | | ?????????????????????????????????????????????????? | | ?????????????????????????????????????????????????? | | ?????????????????????????????????????????????????? | | ?????????????????????????????????????????????????? | | ?????????????????????????????????????????????????? | | ???????????????????????????????????????????####### | | ???????????????????????????????????????????# | | ???????????????????????????????????????????# | | ???????????????????????????????????????????# % | | ???????????????????????????????????????????# ! | | ???????????????????????????????????????????# | | ????????????????????????????????????####???# | | ??????????????????????###############T ##### | | ??????????????????????# | | ??????????????????????# g | | ??????????????????????#"" g g gg g | | ??????????????????????#"Y@""" """ """ """ """ """ | | ??????????????????????#" g%"" """ """ """ """ """ | | ??????????????????????# "%" """ """ """ """ """ | | ??????????????????????#kg % | | ??????????????????????# """ """ """ """ """ """ | | ????????????????????? + """ """ """ """ """ """ | | ????????????????????? # """ """ """ """ """ """ | | ????????????????????! # ? ? ?? | | ???????????????????!!?# ? ? ? ??/ | | ???????????????????! ?# ?###?###?###?###?###??? | | ??????????????????##??# ??????????????????????? | | ?????????????????????? ??????????????????????? | | ?????????????????????? ??????????????????????? | | ?????????????????????? ??????????????????????? | | ?????????????????????? ??????????????????????? | | ??????????????????????? ??????????????????????? | | ?????????????????????????????????????????????????? | | ?????????????????????????????????????????????????? | | ?????????????????????????????????????????????????? | | ?????????????????????????????????????????????????? | | ?????????????????????????????????????????????????? | | ?????????????????????????????????????????????????? | | ?????????????????????????????????????????????????? | | ?????????????????????????????????????????????????? | | ?????????????????????????????????????????????????? | +----------------------------------------------------+ Best States ------------- Heat Dissipation 37 Energy Generation 15 Energy Capacity 275 Matter Stores 300 Matter Capacity 300 Sight Range 16 Terrain Scan Density 10 ECM Strength 1 Propulsion Shielding 33 Evasion (%) 55 Item Schematics ----------------- None Robot Schematics ------------------ None Fabricated ------------ Nothing Repaired ---------- Nothing Alien Tech Used ----------------- None Achievements -------------- Brute Force Challenges ------------ None Game ------ Seed InertialPrecisionLauncher Manual? 0 Play Time 00:15:24 Cumulative 20.1 hours Start 2025.08.25 @ 12:02:54 End 2025.08.25 @ 12:21:47 Sessions 1 Manual Loads 0 Difficulty Rogue Special Mode None Game No. 42 Rogue 42 Adventurer 0 Explorer 0 Win Type - Total 0 Types 0/0/0/0/0/0/0/0/0/0 Lore% 7 Gallery% 18 Achievement% 21 Wizard Run 0 Options --------- Layout 1 ASCII 1 Keyboard 0 Movement Numpad Keybinds 0 Fullscreen 1 Font 24/Cog Map View 50x35 Zoom Use 0% Tactical HUD 0 Map Filters NONE Filters NONE Steam 0 RUN: 21a1e07d-b60a-44b0-823b-f57ba5715dd5